Cogmind - Beta 13 @@@ ROGUE MODE // 2024.06.17 @ 19:15:39 Player: Inomamais Result: Destroyed by Y-64 Sentinel with Wave Gun Performance ------------- Evolutions (3) 1500 Regions Visited (12) 2400 Robots Destroyed (191) 955 Value Destroyed (6363) 6363 Prototype IDs (32) 640 Alien Tech Used (0) 0 Bonus (-127) -127 TOTAL SCORE: 11731 Bonus ------- High Alert Combat Kills 800 Follower Combat Kills 120 Aligned with FarCom 300 Friendly Fire -1347 Cogmind --------- Core Integrity 0/700 Matter 237/300 Energy 325/325 System Corruption 16% Temperature Warm (144) Movement Treading (156) Location -7/Lower Caves Parts ------- > --- POWER (1) -------- Antimatter Reactor > --- PROPULSION (4) --- Improved Treads Advanced Treads Medium Treads Medium Treads > --- UTILITY (5) ------ Seismic Detector Core Analyzer Heavy Armor Plating Hardened Medium Armor Plating > --- WEAPON (3) ------- Gauss Rifle Flak Gun Battle Cannon > --- INVENTORY (5) ---- Neutrino Core Advanced Treads Improved Heat Sink Actuator Array Hardened Light Armor Plating Peak State ------------ > --- POWER ------------ Reinforced Ion Engine > --- PROPULSION ------- Light Treads Medium Treads Heavy Treads > --- UTILITY ---------- Huge Storage Unit Advanced Visual Processing Unit Hardened Heavy Armor Plating Improved Shield Generator > --- WEAPON ----------- Flak Gun Flak Gun Flak Gun > --- INVENTORY -------- Antimatter Reactor Antimatter Reactor Light Treads Light Treads Improved Heat Sink Improved Cooling System Medium Matter Pod High-capacity Matter Pod Transmission Jammer Heavy Armor Plating Hardened Heavy Armor Plating Hardened Heavy Armor Plating Long-range Tractor Beam Heavy Assault Rifle High-powered Shotgun Flak Gun Flak Gun Gauss Cannon Heavy Missile Launcher Heavy Missile Launcher Field Lobotomy Kit Maul [Rating: 56] Favorites ----------- Power Reinforced Ion Engine Engine Reinforced Ion Engine Reactor Antimatter Reactor Propulsion Light Treads Treads Light Treads Wheel Wheel Flight Unit VTOL Module Utility Huge Storage Unit Device Transmission Jammer Storage Huge Storage Unit Processor Advanced Visual Processing Unit Protection Hardened Heavy Armor Plating Weapon Flak Gun Ballistic Gun Flak Gun Ballistic Cannon Battle Cannon Launcher Heavy Missile Launcher Special Weapon Field Lobotomy Kit Impact Weapon Maul Slashing Weapon Mining Claw Piercing Weapon Makeshift Spear Build | -11 -10 -10 -9 -9 -9 -8 -8 -7 -7 -7 -7 -7 ------- Run | Yrd Mat Min Mat Min Exi Min Mat Fac Was Fac Low Low Slots Evolved 6 | . . . 2 . . . 2 2 . . . . Power . | . . . . . . . . . . . . . Propulsion 2 | . . . 1 . . . 1 . . . . . Utility 3 | . . . . . . . 1 2 . . . . Weapon 1 | . . . 1 . . . . . . . . . Parts Attached 228 | 7 21 1 18 11 . 2 10 69 4 55 25 5 Power 6 | 1 1 . . 1 . . . 2 . . 1 . Engine 5 | 1 1 . . 1 . . . 2 . . . . Core . | . . . . . . . . . . . . . Reactor 1 | . . . . . . . . . . . 1 . Propulsion 32 | 2 3 . 6 1 . 1 2 6 1 3 7 . Treads 29 | 2 3 . 6 1 . 1 2 6 1 3 4 . Leg . | . . . . . . . . . . . . . Wheel 2 | . . . . . . . . . . . 2 . Hover . | . . . . . . . . . . . . . Flight 1 | . . . . . . . . . . . 1 . Utility 87 | 2 10 1 8 8 . 1 3 25 . 18 8 3 Device 52 | 1 3 1 4 3 . . 1 19 . 16 4 . Storage 5 | 1 3 . . . . . . 1 . . . . Processor 5 | . 1 . . . . . 1 1 . . 2 . Hackware . | . . . . . . . . . . . . . Protection 25 | . 3 . 4 5 . 1 1 4 . 2 2 3 Artifact . | . . . . . . . . . . . . . Weapon 103 | 2 7 . 4 1 . . 5 36 3 34 9 2 Energy Gun . | . . . . . . . . . . . . . Energy Cannon . | . . . . . . . . . . . . . Ballistic Gun 56 | 2 3 . 4 1 . . 4 20 1 16 5 . Ballistic Cannon 7 | . . . . . . . . 1 . 4 1 1 Launcher 13 | . 3 . . . . . 1 5 . 4 . . Special Weapon 2 | . 1 . . . . . . . 1 . . . Impact Weapon 21 | . . . . . . . . 10 1 10 . . Slashing Weapon 1 | . . . . . . . . . . . 1 . Piercing Weapon 3 | . . . . . . . . . . . 2 1 Special Melee Weapon . | . . . . . . . . . . . . . Unidentified Prototypes . | . . . . . . . . . . . . . Parts Lost 25 | . 1 . . . . 1 2 3 . 14 4 . Power 2 | . . . . . . . . 1 . 1 . . Propulsion 8 | . . . . . . . 1 1 . 5 1 . Utility 10 | . 1 . . . . 1 . 1 . 5 2 . Weapon 5 | . . . . . . . 1 . . 3 1 . Highest Loss Streak 9 | . 1 . . . . 1 1 1 . 9 2 . To Critical Strikes 1 | . . . . . . . . 1 . . . . Average Slot Usage (%) 92 | . 98 100 100 100 100 100 99 97 87 83 61 92 Engine 7 | . 14 14 11 11 11 11 9 7 7 6 . . Treads 27 | . 28 28 33 33 33 33 36 29 25 22 9 30 Device 7 | . 10 14 8 5 . . 8 8 7 6 13 7 Storage 7 | . 14 14 11 11 11 11 9 7 7 7 . . Processor 4 | . . . . . . . . 6 7 7 9 10 Protection 7 | . 1 . 2 5 11 11 9 11 7 6 2 11 Ballistic Gun 21 | . 26 14 33 33 33 33 26 19 16 16 7 15 Impact Weapon 2 | . . . . . . . . 2 2 4 . . Naked Turns 4 | . . . . . . . . . . 2 2 . Heaviest Build 133 | 13 55 53 60 63 63 63 73 133 125 126 43 51 Greatest Support 118 | 40 40 40 69 74 74 74 94 88 118 118 101 101 Greatest Overweight (x) 29 | . 1 1 . . . . . 1 1 29 3 . Average Overweight (x) . | . . 1 . . . . . . 1 1 1 . Largest Inventory Capacity 25 | 8 20 20 20 20 20 20 20 25 25 25 5 5 Average Capacity 21 | 6 15 20 20 20 20 20 20 24 25 24 5 5 Most Carried 25 | 6 17 17 20 20 20 20 20 25 25 25 5 5 Average Carried 20 | 4 13 17 19 19 19 19 19 24 23 24 4 4 Final Capacity 25 | 8 20 20 20 20 20 20 20 25 25 5 5 5 Final Carried 24 | 6 17 17 20 20 20 20 19 24 24 5 5 5 Class Distribution -------------------- 37% | Mutant 29% | Tank 9% | Skirmisher 6% | Scavenger-Skirmisher 4% | Gunner 4% | Scavenger-Mutant 4% | Scavenger-Gunner Dominant Class ---------------- Mutant | -10/Materials Mutant | -10/Mines Gunner | -9/Materials Gunner | -9/Mines Tank | -9/Exiles Skirmisher | -8/Mines Tank | -8/Materials Tank | -7/Factory Scavenger-Skirmisher | -7/Waste Mutant | -7/Factory Scavenger-Gunner | -7/Lower Caves Scavenger-Tank | -7/Lower Caves Resources | -11 -10 -10 -9 -9 -9 -8 -8 -7 -7 -7 -7 -7 ----------- Run | Yrd Mat Min Mat Min Exi Min Mat Fac Was Fac Low Low Matter Collected 6912 | 247 589 . 326 298 . 103 352 2232 124 2002 556 83 Remotely 1168 | . . . . . . . . 777 . 391 . . Salvage Created 6980 | 16 514 . 562 203 . 233 438 1892 524 1974 249 375 Parts 349 | 5 44 . 32 10 . 6 26 124 3 82 9 8 Haulers Intercepted 7 | . 2 . 1 . . . 2 1 . 1 . . Recyclers Shooed 5 | . . . . . . . . 3 . 2 . . Parts Field Recycled . | . . . . . . . . . . . . . Retrieved Matter . | . . . . . . . . . . . . . Parts Self-Destructed 13 | . . . . . . . . . . . 9 4 Prevented . | . . . . . . . . . . . . . Kills | -11 -10 -10 -9 -9 -9 -8 -8 -7 -7 -7 -7 -7 ------- Run | Yrd Mat Min Mat Min Exi Min Mat Fac Was Fac Low Low Combat Hostiles Destroyed 135 | . 10 . 10 9 . 3 9 43 . 43 6 2 Melee 6 | . . . . . . . 1 . . 4 1 . Guns 99 | . 10 . 10 9 . 3 7 33 . 23 3 1 Cannons 3 | . . . . . . . . . . . 2 1 AOE 23 | . . . . . . . 1 10 . 12 . . Classes Destroyed 17 | 1 5 . 2 1 . 1 . 6 1 . . . Worker 10 | . 1 . . . . . . 4 . 5 . . Builder 15 | . . . . . . . . 9 . 6 . . Tunneler 4 | 1 . . . . . . . 1 . 2 . . Hauler 7 | . 2 . 1 . . . 2 1 . 1 . . Recycler 9 | . . . . . . 1 . 4 . 4 . . Mechanic 3 | . . . . . . . . 1 . 2 . . Watcher 9 | . 3 . 2 . . . 2 2 . . . . Swarmer 23 | . 3 . . 3 . . . 12 . 1 2 2 Grunt 64 | . 7 . 7 2 . 3 8 13 . 21 3 . Brawler 7 | . . . 1 1 . . . 2 . 3 . . Duelist 5 | . . . . . . . . 2 . 3 . . Protector 2 | . . . . . . . . 2 . . . . Sentry 10 | . . . 2 . . . 1 3 . 4 . . Hunter 2 | . . . . . . . . 1 . . 1 . Programmer 19 | . . . . . . . . 8 . 11 . . Compactor 2 | . . . . . . . . . 2 . . . Assembled 3 | . . . . 3 . . . . . . . . Best Kill Streak 8 | 1 4 . 3 3 . 3 4 8 . 7 3 2 Combat Bots Only 5 | . 4 . 3 3 . 3 3 5 . 5 3 2 Max Kills in Single Turn 6 | 1 1 . 1 1 . 1 1 6 1 3 1 2 Gunslinging 1 | . . . . . . . . . . 1 . . Exploded 3 | . . . . . . . 1 3 . 3 . . Melee 1 | . . . . . . . 1 . . 1 1 . Uniques/NPCs Destroyed . | . . . . . . . . . . . . . Combat | -11 -10 -10 -9 -9 -9 -8 -8 -7 -7 -7 -7 -7 -------- Run | Yrd Mat Min Mat Min Exi Min Mat Fac Was Fac Low Low Hostile Shots Fired 914 | . 55 . 33 14 . 15 43 217 . 473 54 10 Missed 270 | . 12 . 6 3 . 1 8 69 . 151 17 3 Damage Taken 8109 | . 483 . 406 147 . 225 534 1545 . 4056 600 113 Core 944 | . 74 . 53 6 . 14 82 76 . 449 138 52 Absorbed by Shields 859 | . . . . . . . 140 546 . 137 36 . Ignored by Resistances 217 | . . . . . . . . 217 . . . . Core Remaining (%) 84 | 100 . 70 . . . 81 85 . . . . . Volleys Fired 351 | 2 61 . 42 12 . 8 28 79 2 97 19 1 Largest 3 | 2 2 . 3 3 . 3 3 3 1 3 3 3 Hottest 95 | 40 60 . 66 74 . 74 76 81 . 84 90 95 Shots Fired 865 | 4 111 . 126 36 . 24 82 217 5 220 36 4 Gun 775 | 4 97 . 126 36 . 24 81 200 3 174 27 3 Cannon 41 | . . . . . . . . 2 . 29 9 1 Launcher 39 | . 6 . . . . . 1 15 . 17 . . Special 10 | . 8 . . . . . . . 2 . . . Kinetic 816 | 4 97 . 126 36 . 24 81 202 3 203 36 4 Thermal 8 | . 8 . . . . . . . . . . . Explosive 39 | . 6 . . . . . 1 15 . 17 . . Electromagnetic . | . . . . . . . . . . . . . Robot Hit Streak 16 | 3 12 . 13 16 . 7 6 11 7 12 6 4 Robot Miss Streak 10 | . 4 . 7 3 . 4 5 10 . 6 10 1 Penetration Max 1 | . . . . . . . . . . 1 . . Secondary Targets 14 | . 3 . 1 . . 2 1 4 . 3 . . Max Gunslinging Chain 1 | . 1 . 1 . . 1 1 1 . 1 . . Shots Hit Robots 641 | 3 68 . 83 21 . 17 56 154 17 183 32 7 Core Hits 476 | 2 35 . 31 16 . 14 43 154 2 149 22 8 Critical Kills 9 | . . . 1 . . . 1 1 2 4 . . Critical Parts Destroyed 9 | . . . . . . . . 3 1 5 . . Critical Strikes 22 | . . . 1 . . . 1 4 5 9 2 . Destroy 3 | . . . 1 . . . 1 1 . . . . Blast 1 | . . . . . . . . . . . 1 . Smash 17 | . . . . . . . . 3 5 9 . . Impale 1 | . . . . . . . . . . . 1 . Melee Attacks 176 | . . . . . . . . 49 15 97 9 6 Impact 161 | . . . . . . . . 49 15 97 . . Slashing 2 | . . . . . . . . . . . 2 . Piercing 13 | . . . . . . . . . . . 7 6 Sneak Attacks 45 | . . . . . . . . 13 15 17 . . Combat Hostiles . | . . . . . . . . . . . . . Follow-up Attacks 2 | . . . . . . . . . . . 2 . Damage Inflicted 18126 | 29 712 . 820 323 . 289 955 5636 1137 7199 634 392 Guns 7973 | 29 568 . 820 323 . 289 894 2273 15 2432 301 29 Cannons 145 | . . . . . . . . . . . 117 28 Explosions 5082 | . 144 . . . . . 59 2320 . 2559 . . Melee 4917 | . . . . . . . . 1036 1122 2208 216 335 Ramming 9 | . . . . . . . 2 7 . . . . Kinetic 8118 | 29 568 . 820 323 . 289 894 2273 15 2432 418 57 Thermal 128 | . . . . . . . . 110 . 18 . . Explosive 4954 | . 144 . . . . . 59 2210 . 2541 . . Electromagnetic . | . . . . . . . . . . . . . Impact 4366 | . . . . . . . . 1036 1122 2208 . . Slashing 25 | . . . . . . . . . . . 25 . Piercing 526 | . . . . . . . . . . . 191 335 Highest Corruption 16 | . . . . . . . . 6 6 16 16 16 Average Corruption 8 | . . . . . . . . 1 6 10 16 16 Corruption Purged 2 | . . . . . . . . 2 . . . . Corruption Blocked . | . . . . . . . . . . . . . Effects 323 | . . . . . . . . 38 27 191 34 33 Message Errors 73 | . . . . . . . . 13 6 38 9 7 Matter Fused 88 | . . . . . . . . 6 8 57 7 10 Heat Flow Errors 39 | . . . . . . . . 3 4 21 4 7 Energy Discharges 31 | . . . . . . . . 6 3 19 2 1 Parts Rejected 3 | . . . . . . . . 1 . 2 . . Parts Fused 3 | . . . . . . . . . 1 2 . . Data Loss (minor) 33 | . . . . . . . . 2 . 24 5 2 Data Loss (major) 15 | . . . . . . . . 5 . 4 3 3 Misfires 21 | . . . . . . . . 1 3 13 3 1 Alerts 12 | . . . . . . . . 1 2 6 1 2 Misdirections 1 | . . . . . . . . . . 1 . . Weapon Failures 4 | . . . . . . . . . . 4 . . Overload Shots . | . . . . . . . . . . . . . Overflow Damage 1878 | . 9 . . . . . 19 766 126 807 61 90 Projectiles 5 | . . . . . . . . . . . . 5 Explosions 221 | . 9 . . . . . 19 126 . 67 . . Melee 1652 | . . . . . . . . 640 126 740 61 85 Knockbacks 17 | . . . . . . . . 5 . 12 . . Impact 17 | . . . . . . . . 5 . 12 . . Kinetic . | . . . . . . . . . . . . . Secondary . | . . . . . . . . . . . . . Self-Inflicted Damage 823 | . . . . . . . 113 226 . 484 . . Shots 14 | . . . . . . . 1 5 . 8 . . Rammed 1 | . . . . . . . . 1 . . . . Targets Rammed 3 | . . . . . . . 1 2 . . . . Kicked . | . . . . . . . . . . . . . Crushed 2 | . . . . . . . 1 1 . . . . Highest Temperature 289 | . 196 . 244 54 . 114 141 231 287 289 282 250 Average Temperature 76 | . 53 . 68 25 . 53 33 70 115 86 102 111 Received Heat Transfer 2341 | . 222 . 219 18 . 126 226 253 . 1083 113 81 Siege Activations . | . . . . . . . . . . . . . Robots Corrupted . | . . . . . . . . . . . . . Combat Hostiles . | . . . . . . . . . . . . . Parts Fried 28 | . . . . . . . . 14 . 14 . . Impact Corruptions 57 | . . . . . . . . 24 2 31 . . Robots Melted . | . . . . . . . . . . . . . Combat Hostiles . | . . . . . . . . . . . . . Parts Melted . | . . . . . . . . . . . . . Heat Transferred 150 | . . . . . . . . 100 . 50 . . Parts Sabotaged . | . . . . . . . . . . . . . Parts Stolen . | . . . . . . . . . . . . . Parts Stripped . | . . . . . . . . . . . . . Power Chain Reactions . | . . . . . . . . . . . . . Alert | -11 -10 -10 -9 -9 -9 -8 -8 -7 -7 -7 -7 -7 ------- Run | Yrd Mat Min Mat Min Exi Min Mat Fac Was Fac Low Low Peak Influence 1080 | 5 199 52 239 137 . 60 157 1080 378 1051 . . Initial 378 | . 3 52 20 27 . . . 71 378 5 . . Average 185 | 1 56 52 93 32 . 14 45 293 219 235 . . Maximum Alert Level 3 | . . . 1 . . . . 3 1 3 . . Low Security (%) 74 | 100 100 100 92 100 . 100 100 54 57 68 . . Level 1 11 | . . . 7 . . . . 18 42 11 . . Level 2 3 | . . . . . . . . 6 . 7 . . Level 3 9 | . . . . . . . . 20 . 13 . . Level 4 . | . . . . . . . . . . . . . Level 5 . | . . . . . . . . . . . . . High Security . | . . . . . . . . . . . . . Max Security . | . . . . . . . . . . . . . Squads Dispatched 41 | . 2 . . 1 . . 2 17 . 18 . 1 Investigation 5 | . 1 . . 1 . . 1 . . 2 . . Extermination 18 | . . . . . . . . 8 . 10 . . Reinforcement 5 | . 1 . . . . . 1 1 . 2 . . Assault 9 | . . . . . . . . 4 . 4 . 1 Garrison 4 | . . . . . . . . 4 . . . . Intercept . | . . . . . . . . . . . . . Searches Triggered . | . . . . . . . . . . . . . Construction Impeded 2 | . . . . . . . . 1 . 1 . . Haulers Reinforced . | . . . . . . . . . . . . . Active Scanning Responses . | . . . . . . . . . . . . . Cargo Convoy Interrupts 1 | . . . . . . . . . . 1 . . Stealth | -11 -10 -10 -9 -9 -9 -8 -8 -7 -7 -7 -7 -7 --------- Run | Yrd Mat Min Mat Min Exi Min Mat Fac Was Fac Low Low Distress Signals 4 | . . . . . . . 1 3 . . . . Communications Jammed 9 | . . . . . . . . 6 . 3 . . Distress Signals 6 | . . . . . . . . 4 . 2 . . Times Spotted 205 | . 16 . 17 9 . 3 15 61 6 63 10 5 Peak Tracking Total 8 | . 3 . 3 3 . 3 4 6 2 5 7 8 Tactical Retreats 10 | . 1 . 1 . . . 2 2 1 3 . . Traps | -11 -10 -10 -9 -9 -9 -8 -8 -7 -7 -7 -7 -7 ------- Run | Yrd Mat Min Mat Min Exi Min Mat Fac Was Fac Low Low Traps Triggered 8 | . 1 . 1 . . . 1 1 . 3 1 . Indirectly . | . . . . . . . . . . . . . Trap Hack Attempts . | . . . . . . . . . . . . . Triggered . | . . . . . . . . . . . . . Disarmed . | . . . . . . . . . . . . . Reprogrammed . | . . . . . . . . . . . . . Reused . | . . . . . . . . . . . . . Traps Extracted . | . . . . . . . . . . . . . Installed . | . . . . . . . . . . . . . Triggered 1 | . . . . . . . . . . 1 . . Machines | -11 -10 -10 -9 -9 -9 -8 -8 -7 -7 -7 -7 -7 ---------- Run | Yrd Mat Min Mat Min Exi Min Mat Fac Was Fac Low Low Machines Disabled 12 | . 3 . . . . . 1 4 . 4 . . Max in Single Turn 2 | . 2 . . . . . 1 2 . 1 . . Garrison Access 2 | . . . . . . . . 2 . . . . Machines Repaired . | . . . . . . . . . . . . . Machines Dismantled . | . . . . . . . . . . . . . Machines Sabotaged . | . . . . . . . . . . . . . Overloaded Fab Kills . | . . . . . . . . . . . . . Hacking | -11 -10 -10 -9 -9 -9 -8 -8 -7 -7 -7 -7 -7 --------- Run | Yrd Mat Min Mat Min Exi Min Mat Fac Was Fac Low Low Machines Accessed 43 | . 4 . 6 2 2 . 7 11 . 10 . 1 Terminals 27 | . 4 . 5 1 . . 6 6 . 5 . . Fabricators 4 | . . . . . . . . 2 . 2 . . Repair Stations . | . . . . . . . . . . . . . Recycling Units 2 | . . . . . . . . . . 2 . . Scanalyzers 3 | . . . 1 . . . 1 1 . . . . Garrison Access 3 | . . . . . . . . 2 . 1 . . Total Hacks 106 | . 16 . 14 3 2 . 38 16 . 16 . 1 Successful 58 | . 9 . 6 2 2 . 30 6 . 2 . 1 Failed 48 | . 7 . 8 1 . . 8 10 . 14 . . Catastrophic 13 | . . . 1 . . . 3 6 . 3 . . Database Lockouts . | . . . . . . . . . . . . . Manual 33 | . 9 . 6 1 1 . 6 4 . 6 . . Terminals 65 | . 16 . 12 2 . . 16 11 . 8 . . Fabricators 5 | . . . . . . . . 2 . 3 . . Repair Stations . | . . . . . . . . . . . . . Recycling Units 4 | . . . . . . . . . . 4 . . Scanalyzers 25 | . . . 2 . . . 22 1 . . . . Garrison Access 3 | . . . . . . . . 2 . 1 . . Terminal Hacks 24 | . 6 . 4 2 2 . 8 . . 1 . 1 Record 2 | . . . . 1 1 . . . . . . . Part Schematic 1 | . 1 . . . . . . . . . . . Robot Analysis 2 | . 2 . . . . . . . . . . . Prototype ID Bank 6 | . 1 . 3 . . . 2 . . . . . Open Door 2 | . . . . 1 . . . . . . . 1 Branch Access Points 4 | . 1 . 1 . . . 1 . . 1 . . Terminal Index 1 | . . . . . . . 1 . . . . . Alert Level 1 | . . . . . . . 1 . . . . . Locate Traps 4 | . 1 . . . . . 3 . . . . . Derelict Proto ID Bank 1 | . . . . . 1 . . . . . . . Fabricator Hacks 1 | . . . . . . . . 1 . . . . Network Status 1 | . . . . . . . . 1 . . . . Repair Station Hacks . | . . . . . . . . . . . . . Recycling Unit Hacks . | . . . . . . . . . . . . . Scanalyzer 24 | . . . 2 . . . 21 1 . . . . Insert Component 12 | . . . 1 . . . 10 1 . . . . Analyze 12 | . . . 1 . . . 11 . . . . . Garrison Access Hacks 2 | . . . . . . . . 2 . . . . Seal Access 2 | . . . . . . . . 2 . . . . Unauthorized Hacks 7 | . 3 . . . . . 1 2 . 1 . . Terminals 7 | . 3 . . . . . 1 2 . 1 . . Assimilate 1 | . 1 . . . . . . . . . . . Botnet 5 | . 1 . . . . . 1 2 . 1 . . Operators 1 | . 1 . . . . . . . . . . . Fabricators . | . . . . . . . . . . . . . Repair Stations . | . . . . . . . . . . . . . Recycling Units . | . . . . . . . . . . . . . Scanalyzers . | . . . . . . . . . . . . . Garrison Access . | . . . . . . . . . . . . . Data Cores Recovered . | . . . . . . . . . . . . . Used . | . . . . . . . . . . . . . Hacking Detections 35 | . 4 . 6 1 . . 7 7 . 10 . . Full Trace Events 1 | . . . . . . . . . . 1 . . Feedback Events . | . . . . . . . . . . . . . Feedback Blocked . | . . . . . . . . . . . . . Robot Schematics Acquired . | . . . . . . . . . . . . . Robots Built . | . . . . . . . . . . . . . Authchips . | . . . . . . . . . . . . . Time . | . . . . . . . . . . . . . Total Robot Build Rating . | . . . . . . . . . . . . . Part Schematics Acquired 12 | . 1 . 1 . . . 10 . . . . . Parts Built . | . . . . . . . . . . . . . Authchips . | . . . . . . . . . . . . . Time . | . . . . . . . . . . . . . Total Part Build Rating . | . . . . . . . . . . . . . Parts Repaired . | . . . . . . . . . . . . . Time . | . . . . . . . . . . . . . Parts Recycled . | . . . . . . . . . . . . . Recycled Matter . | . . . . . . . . . . . . . Retrieved Matter . | . . . . . . . . . . . . . Retrieved Components . | . . . . . . . . . . . . . Parts Scanalyzed 11 | . . . 1 . . . 10 . . . . . Part Schematics Acquired 11 | . . . 1 . . . 10 . . . . . Parts Damaged . | . . . . . . . . . . . . . Bothacking | -11 -10 -10 -9 -9 -9 -8 -8 -7 -7 -7 -7 -7 ------------ Run | Yrd Mat Min Mat Min Exi Min Mat Fac Was Fac Low Low Used RIF Installer . | . . . . . . . . . . . . . Robots Hacked . | . . . . . . . . . . . . . Non-combat . | . . . . . . . . . . . . . Combat . | . . . . . . . . . . . . . Robot Hacks Applied . | . . . . . . . . . . . . . Relay Couplers Released . | . . . . . . . . . . . . . Fabnet Peak Effective % . | . . . . . . . . . . . . . Robots Rewired . | . . . . . . . . . . . . . Allies Hacked . | . . . . . . . . . . . . . Hacks Repelled . | . . . . . . . . . . . . . Allies | -11 -10 -10 -9 -9 -9 -8 -8 -7 -7 -7 -7 -7 -------- Run | Yrd Mat Min Mat Min Exi Min Mat Fac Was Fac Low Low Total Allies 4 | . . 1 . . . . . . 3 . . . Largest Group 2 | . . 1 1 . . . . . 2 . . . Highest-Rated Group 282 | . . 31 31 . . . . . 282 . . . Highest-Rated Ally 141 | . . 31 31 . . . . . 141 . . . Total Orders . | . . . . . . . . . . . . . Ally Attacks 49 | . . . 8 . . . . . 41 . . . Total Damage 1862 | . . . 169 . . . . . 1693 . . . Kills 4 | . . . . . . . . . 4 . . . Allies Corrupted . | . . . . . . . . . . . . . Allies Melted . | . . . . . . . . . . . . . Field Lobotomies 2 | . . . . . . . . . 2 . . . Intel | -11 -10 -10 -9 -9 -9 -8 -8 -7 -7 -7 -7 -7 ------- Run | Yrd Mat Min Mat Min Exi Min Mat Fac Was Fac Low Low Robot Analysis Total 2 | . 2 . . . . . . . . . . . Derelict Logs Recovered 1 | . . . . 1 . . . . . . . . Drone Launches . | . . . . . . . . . . . . . Drone Recoveries . | . . . . . . . . . . . . . Exploration | -11 -10 -10 -9 -9 -9 -8 -8 -7 -7 -7 -7 -7 ------------- Run | Yrd Mat Min Mat Min Exi Min Mat Fac Was Fac Low Low Turns Passed 20470 | 112 2016 66 1024 864 327 950 1566 5634 947 5318 951 695 Spaces Moved 7964 | 59 1006 27 428 379 204 447 704 1664 349 1677 591 429 Core 25 | 4 . . . . . . . . . 7 14 . Treads 7556 | 55 1006 27 428 379 204 447 704 1664 349 1670 194 429 Legs . | . . . . . . . . . . . . . Wheels 321 | . . . . . . . . . . . 321 . Hover . | . . . . . . . . . . . . . Flight 62 | . . . . . . . . . . . 62 . Fastest Speed 35 | 50 160 240 160 160 160 160 162 162 240 50 35 156 Average Speed 194 | 152 162 240 160 160 160 160 162 240 240 240 119 156 Slowest Speed 1500 | 160 240 240 160 160 160 163 162 242 242 1500 156 156 Overloaded Moves . | . . . . . . . . . . . . . Propulsion Burnouts . | . . . . . . . . . . . . . Robots Hopped . | . . . . . . . . . . . . . Cave-ins Triggered . | . . . . . . . . . . . . . Exploration Rate (%) 56 | 4 99 13 43 77 60 92 53 40 88 37 70 55 Regions Visited 12 Branch Regions 6 Pre-discovered Areas 2 | . . . . 1 1 . . . . . . . Known Exits Taken 4 | . 1 1 1 . . . . . . 1 . . Unknown Exits Taken 6 | 1 . . . 1 1 1 1 . . . 1 . Scrap Searched 9 | . . . . 1 . 2 . . . . 4 2 Spaces Dug 87 | . . . . . . . . 33 . 54 . . Terrain Destroyed 536 | . 33 . . . . . 55 218 . 230 . . Melee 69 | . . . . . . . . 30 . 39 . . Projectile 32 | . . . . . . . . 3 . 29 . . AOE 435 | . 33 . . . . . 55 185 . 162 . . Terrain Rammed . | . . . . . . . . . . . . . Walls Destroyed . | . . . . . . . . . . . . . Machines Disabled . | . . . . . . . . . . . . . Actions | -11 -10 -10 -9 -9 -9 -8 -8 -7 -7 -7 -7 -7 --------- Run | Yrd Mat Min Mat Min Exi Min Mat Fac Was Fac Low Low Total 11943 | 74 1299 29 691 616 205 661 1079 3036 424 2586 797 446 Wait 2996 | 1 169 2 188 195 . 203 309 1105 44 634 146 . Move 7953 | 58 1005 26 427 378 203 446 703 1664 348 1676 590 429 Hop . | . . . . . . . . . . . . . Pick Up 115 | 6 24 . 7 8 1 1 13 30 5 14 4 2 Fast Attach 32 | 7 1 . . . . . 2 5 . 2 14 1 Attach 29 | . 1 . 2 . . 1 3 5 1 7 8 1 Detach 10 | . 1 . . . . . 1 2 . . 5 1 Swap 167 | . 19 1 16 11 . 1 5 59 3 46 3 3 Drop 111 | . 18 . 9 12 1 1 14 36 6 11 1 2 Fire 351 | 2 61 . 42 12 . 8 28 79 2 97 19 1 Melee 174 | . . . . . . . . 49 15 97 7 6 Ram . | . . . . . . . . . . . . . Kick . | . . . . . . . . . . . . . Crush 3 | . . . . . . . 1 2 . . . . Escape Stasis 2 | . . . . . . . . . . 2 . . Rewire . | . . . . . . . . . . . . . Trap . | . . . . . . . . . . . . . Miscellaneous . | . . . . . . . . . . . . . Route ------- -11/Scrapyard -10/Materials (discovered 5 exits: *Mat x3 / *Min x2) -10/Mines -9/Materials (discovered 4 exits: *Mat / *Min x2 / Sto) -9/Mines (discovered 4 exits: *Mat x2 / *Exi / [*Zio]) -9/Exiles -8/Mines -8/Materials -7/Factory (discovered 2 exits: [*Fac x2]) -7/Waste -7/Factory (discovered 4 exits: [*Fac x2] / *Low x2) -7/Lower Caves -7/Lower Caves History --------- Turn | Location | Event 26 | -11/Scrapyard | Discovered new exit (range 15) 113 | -11/Scrapyard | Entered Materials 259 | -10/Materials | Discovered new exit (range 10) 317 | -10/Materials | Build established: Mutant 473 | -10/Materials | Discovered new exit (range 15) 987 | -10/Materials | Identified exit to Materials 1265 | -10/Materials | Identified exit to Mines 1361 | -10/Materials | Discovered exit to Materials (range 9) 1874 | -10/Materials | Discovered exit to Materials (range 14) 2129 | -10/Materials | Entered Mines 2132 | -10/Mines | Received a Mining Laser from a helpful Derelict 2174 | -10/Mines | Discovered exit to Materials (range 10) 2195 | -10/Mines | Entered Materials 2195 | -9/Materials | Accompanied by 1 ally 2195 | -9/Materials | Evolved 2 slots: Propulsion x1, Weapon x1 2822 | -9/Materials | Identified exit to Mines 2822 | -9/Materials | Identified exit to Storage 3004 | -9/Materials | Discovered new exit (range 3) 3219 | -9/Materials | Entered Mines 3265 | -9/Mines | Discovered new exit (range 9) 3269 | -9/Mines | Received a Rocket Launcher from a helpful Derelict 3385 | -9/Mines | Build established: Gunner 3398 | -9/Mines | Met a Derelict shopkeep closing up shop 3485 | -9/Mines | A Derelict revealed a hidden shortcut to a safe place 3686 | -9/Mines | Assembled infested the area 3760 | -9/Mines | A weapon hastily lodged in a ceiling crevice suddenly fell to the ground 3996 | -9/Mines | Discovered new exit (range 7) 4012 | -9/Mines | Learned location of Storage (-9) 4075 | -9/Mines | Deemed a non-threat by the Exiles lab entrance 4075 | -9/Mines | Discovered new exit (range 5) 4083 | -9/Mines | Entered Exiles 4123 | -9/Exiles | Met 8R-AWN 4149 | -9/Exiles | Met EX-HEX 4192 | -9/Exiles | Met EX-BIN 4213 | -9/Exiles | Aligned with FarCom system 4215 | -9/Exiles | Given EX-Vault access code 4251 | -9/Exiles | Opened EX-Vault 4256 | -9/Exiles | Build established: Tank 4262 | -9/Exiles | Found Field Lobotomy Kit 4293 | -9/Exiles | Warned to stay clear of 0b10 Research branches 4339 | -9/Exiles | Met EX-DEC 4349 | -9/Exiles | Learned location of Zion (-7) 4397 | -9/Exiles | Discovered new exit (range 10) 4410 | -9/Exiles | Left Exiles lab with Field Lobotomy Kit 4410 | -9/Exiles | Entered Mines 4702 | -8/Mines | Build established: Skirmisher 5352 | -8/Mines | Discovered new exit (range 6) 5360 | -8/Mines | Entered Materials 5360 | -8/Materials | Evolved 2 slots: Propulsion x1, Utility x1 5712 | -8/Materials | Build established: Tank 6577 | -8/Materials | Discovered new exit (range 15) 6926 | -8/Materials | Entered Factory 6926 | -7/Factory | Evolved 2 slots: Utility x2 8334 | -7/Factory | Build established: Mutant 8831 | -7/Factory | Build established: Tank 9152 | -7/Factory | Build established: Mutant 9537 | -7/Factory | Garrison activated, responded to threat 9644 | -7/Factory | Build established: Tank 10031 | -7/Factory | Garrison activated, responded to threat 10540 | -7/Factory | Build established: Mutant 11110 | -7/Factory | Build established: Tank 11369 | -7/Factory | First assault squad dispatched 11514 | -7/Factory | Discovered new exit (range 6) 12521 | -7/Factory | Discovered new exit (range 18) 12560 | -7/Factory | Sucked down chute 12560 | -7/Factory | Entered Waste 12561 | -7/Waste | Met a frightened Derelict 12593 | -7/Waste | Spotted C-40 Crusher 12603 | -7/Waste | Build established: Scavenger-Skirmisher 12605 | -7/Waste | Assimilated C-40 Crusher with FLK Orb 12655 | -7/Waste | Spotted C-40 Crusher 12669 | -7/Waste | Assimilated C-40 Crusher with FLK Orb 12678 | -7/Waste | Spotted C-40 Crusher 12687 | -7/Waste | Spotted C-40 Crusher 12691 | -7/Waste | Allies destroyed C-40 Crusher 12693 | -7/Waste | Spotted C-40 Crusher 12697 | -7/Waste | Allies destroyed C-40 Crusher 12717 | -7/Waste | Spotted C-40 Crusher 12760 | -7/Waste | Allies destroyed C-40 Crusher 12852 | -7/Waste | Discovered new exit (range 13) 12931 | -7/Waste | Destroyed Crusher 4b 13021 | -7/Waste | Destroyed Crusher 4a 13233 | -7/Waste | Build established: Scavenger-Mutant 13507 | -7/Waste | Entered Factory 13634 | -7/Factory | Build established: Scavenger-Skirmisher 13700 | -7/Factory | Discovered new exit (range 8) 14083 | -7/Factory | Build established: Scavenger-Mutant 14447 | -7/Factory | Cargo convoy interrupted 15265 | -7/Factory | Build established: Mutant 15327 | -7/Factory | System corruption reached 10% 15336 | -7/Factory | Discovered new exit (range 19) 15824 | -7/Factory | Build established: Tank 16166 | -7/Factory | Build established: Mutant 17907 | -7/Factory | First assault squad dispatched 18032 | -7/Factory | Build established: Skirmisher 18078 | -7/Factory | Identified exit to Lower Caves 18336 | -7/Factory | Build established: Mutant 18767 | -7/Factory | Core integrity fell below 50% 18814 | -7/Factory | Lost 9 parts (1p3n2u3w) 18823 | -7/Factory | Released all parts (4) 18825 | -7/Factory | Entered Lower Caves 18983 | -7/Lower Caves | Core integrity fell below 20% 19748 | -7/Lower Caves | Build established: Scavenger-Gunner 19749 | -7/Lower Caves | Discovered new exit (range 12) 19772 | -7/Lower Caves | Attracted the attention of an 0b10 outpost 19776 | -7/Lower Caves | Entered another Lower Caves area 20398 | -7/Lower Caves | Build established: Scavenger-Tank 20442 | -7/Lower Caves | Attracted the attention of an 0b10 outpost 20471 | -7/Lower Caves | Destroyed by Y-64 Sentinel with Wave Gun Last Messages --------------- 20314_ Acquired Unknown Protection. 20319_ Identified Hrd. Light Armor Plating. 20321_ D6FK5W:RH=1DBYG 20357_ System corrupted: Matter fused (-8). 20379_ System corrupted: Matter fused (-6). 20395_ System corrupted: Heat flow error (+156). 20406_ Connecting with WAR.Sys... 20406_ Current location identified: Lower Caves >>Open Door Sealed Heavy Doors opened. 20411_ System corrupted: Matter fused (-5). 20430_ System corrupted: Matter fused (-10). 20442_ Y-64 Sentinel: "DETECTED UNIDENTIFIED DERELICT." 20446_ Y-64 Sentinel: "REQUESTING BACKUP." 20450_ Slug penetrates Wall. 20450_ S-27 Virus destroyed. 20450_ Destroyed VTOL Module. 20450_ S-27 Virus destroyed. 20459_ System corrupted: Heat flow error (+199). 20471_ Critical hit (Burn: +37). Map ----- +----------------------------------------------------+ | ?????????????????????????????????????????????????? | | ?????????????????????????????????????????????????? | | ?????????????????????????????????????????????????? | | ?????????????????????????????????????????????????? | | ?????????????????????????????????????????????????? | | ?????????????????????????????????????????????????? | | ?????????????????????????????????????????????????? | | ?????????????????????????????????????????????????? | | ?????????????????????????????????????????????????? | | ?????????????????????????????????????????????????? | | ?????????????????????????????????????????????????? | | ?????????????????????????????????????????????????? | | ?????????????????????????#???????????????????????? | | ????????????????????????? ???????????????????????? | | ????????????????????????? ???????????????????????? | | ???????????## ??????????? ???????????????????????? | | ?????????? ???????????? #???????????# ?????????? | | ?????????? ???????????# #??????????"# #????????? | | ?????????? ????????#### #????????? "# #????????? | | ?????????? ????????## # #???????? "# #??###???? | | ?????????? ????????# #?###### "# #?# ???? | | ?????????? ????????# ### # g ## ## ????? | | ????????## ??????????? ## # # ????? | | ????????# ?????##??????# ## #X ## ?????? | | ??#????# #????# ##?##### ####### ??????? | | # # ???# ##### ### @ #?????### | | # ### ### ## # ###??## | | # ### #### | | # #?## =! | | # ## ### ##### ##### /% | | ??????##??#[% gg #???# ##### | | ??????????# = Y #???# #?## | | ??????????####### ##???## ### ## #?? | | ????????????????## ####?????#######?## ### #? | | ?????????????????###?????????????????####?# #? | | ??????????????????????????????????????????# #? | | ?????????????????????????????????????????? #? | | ?????????????????????????????????????????? #? | | ?????????????????????????????????????????? #? | | ?????????????????????????????????????????? ? | | ?????????????????????????????????######??? | | ?????????????????????????????????# ##??## | | ?????????????????????????????????# #???? | | ?????????????????????????????????# #????###### | | ?????????????????????????????????## #########?? | | ??????????????????????????????????# ## ## ### | | ????????????????????????????####### # | | ????????????????????????????# # | | ????????????????????????????# """" # ### | | ????????????????????????????# """" # #?## | +----------------------------------------------------+ Best States ------------- Heat Dissipation 48 Energy Generation 21 Energy Capacity 325 Matter Stores 300 Matter Capacity 300 Sight Range 20 Robot Scan Range 15 Terrain Scan Density 10 Jamming Range 12 Armor Coverage 825 Resistance: KI 30 Evasion (%) 63 Melee Accuracy 6 Core Analysis 6 Recoil Reduction 4 Item Schematics ----------------- Huge Storage Unit | -10/Materials | Hacked Rocket Launcher | -9/Materials | Scanalyzed Lrn. Tractor Beam | -8/Materials | Scanalyzed Lgt. Treads | -8/Materials | Scanalyzed Lgt. Armor Plating | -8/Materials | Scanalyzed Hcp. Matter Pod | -8/Materials | Scanalyzed Imp. Light Armor Plating | -8/Materials | Scanalyzed Missile Launcher | -8/Materials | Scanalyzed Maul | -8/Materials | Scanalyzed Imp. Heat Sink | -8/Materials | Scanalyzed Hvy. Assault Rifle | -8/Materials | Scanalyzed Hardlight Generator | -8/Materials | Scanalyzed Robot Schematics ------------------ None Fabricated ------------ Nothing Alien Tech Used ----------------- None Achievements -------------- Batter Up Collateral Damage Challenges ------------ None Game ------ Seed ShadingSuperchargedFlail Manual? 0 Play Time 02:53:57 Cumulative 141.6 hours Start 2024.06.17 @ 12:44:13 End 2024.06.17 @ 19:15:39 Sessions 3 Manual Loads 0 Difficulty Rogue Special Mode None Game No. 67 Rogue 66 Adventurer 1 Explorer 0 Win Type - Total 4 Types 4/0/0/0/0/0/0/0/0 Lore% 53 Gallery% 52 Achievement% 48 Wizard Run 0 Options --------- Layout 0 ASCII 1 Keyboard 1 Movement Numpad Keybinds 0 Fullscreen 1 Font 18/SmallcapsGlow Map View 76x50 Zoom Use 0% Tactical HUD 1 Map Filters NONE Filters NONE Steam 1 RUN: cd3cf976-507d-4ef2-9ce9-09473a198ef7